Workbook

Sheet Nutzenpotential
A3: Eignung der Geschäftsprozesse für die Einführung von eBusiness Standards
A4: Kategorie | B4: Kriterien | C4: Bemerkung | D4: Bewertung | J4: Einfluss auf eBS Kategorien
D5: GP 1 | F5: GP 2 | H5: GP 3 | N5: GP1 | R5: GP2 | V5: GP3 | AB5: Bitte tragen Sie in die makierten Felder ihre Selbsteinschätzung ein
E6: gerundeter Durchschnitt | G6: gerundeter Durchschnitt | I6: gerundeter Durchschnitt | J6: IS | K6: PKS | L6: KS | M6: TS | N6: IS | O6: PKS | P6: KS | Q6: TS | R6: IS | S6: PKS | T6: KS | U6: TS | V6: IS | W6: PKS | X6: KS | Y6: TS
A7: Transaktions-objekt | B7: Individualisierungsgrad | C7: 1:= sehr individuell; 5= nicht individuell | D7: 1 | E7: =ROUND(((D7+D8+D9)/3),0) -> 2 | F7: 1 | G7: =ROUND(((F7+F8+F9)/3),0) -> 2 | H7: 1 | I7: =ROUND(((H7+H8+H9)/3),0) -> 2 | J7: 0.58 | K7: 0.61 | L7: 0.75 | M7: 0.75 | N7: =$D$7*$J$7+$D$8*$J$8+$D$9*$J$9 -> 2.09 | O7: =$D$7*$K$7+$D$8*$K$8+$D$9*$K$9 -> 1.97 | P7: =$D$7*$L$7+$D$8*$L$8+$D$9*$L$9 -> 2.95 | Q7: =$D$7*$M$7+$D$8*$M$8+$D$9*$M$9 -> 2.82 | R7: =$F$7*$J$7+$F$8*$J$8+$F$9*$J$9 -> 2.09 | S7: =F7*$K$7+F8*$K$8+F9*$K$9 -> 1.97 | T7: =$F$7*$L$7+$F$8*$L$8+$F$9*$L$9 -> 2.95 | U7: =$F$7*$M$7+$F$8*$M$8+$F$9*$M$9 -> 2.82 | V7: =$H$7*$J$7+$H$8*$J$8+$H$9*$J$9 -> 2.09 | W7: =$H$7*$K$7+$H$8*$K$8+$H$9*$K$9 -> 1.97 | X7: =$H$7*$L$7+$H$8*$L$8+$H$9*$L$9 -> 2.95 | Y7: =$H$7*$M$7+$H$8*$M$8+$H$9*$M$9 -> 2.82
B8: Komplexität der Beschreibung | C8: 1:= hohe Komplexität; 5:= gerine Komplexität | D8: 2 | F8: 2 | H8: 2 | J8: 0.38 | K8: 0.38 | L8: 0.8 | M8: 0.6
B9: Wertigkeit | C9: 1:= hohe Wertigkeit; 5:= gerine Wertigkeit | D9: 3 | F9: 3 | H9: 3 | J9: 0.25 | K9: 0.2 | L9: 0.2 | M9: 0.29
A10: Transaktions-struktur | B10: Regelmäßigkeit | C10: 1:= sehr selten ; 5:= sehr häufig | D10: 4 | E10: =ROUND(((D10+D11+D12+D13)/4),0) -> 3 | F10: 4 | G10: =ROUND(((F10+F11+F12+F13)/4),0) -> 4 | H10: 4 | I10: =ROUND(((H10+H11+H12+H13)/4),0) -> 3 | J10: 0.5 | K10: 0.42 | L10: 0.58 | M10: 0.79 | N10: =$D$10*$J$10+$D$11*$J$11+$D$12*$J$12+$D$13*$J$13 -> 7.21 | O10: =$D$10*$K$10+$D$11*$K$11+$D$12*$K$12+$D$13*$K$13 -> 5.09 | P10: =$D$10*$L$10+$D$11*$L$11+$D$12*$L$12+$D$13*$L$13 -> 6.54 | Q10: =$D$10*$M$10+$D$11*$M$11+$D$12*$M$12+$D$13*$M$13 -> 9 | R10: =$F$10*$J$10+$F$11*$J$11+$F$12*$J$12+$F$13*$J$13 -> 9.67 | S10: =F10*K10+F11*K11+F12*K12+F13*K13 -> 6.48 | T10: =$F$10*$L$10+$F$11*$L$11+$F$12*$L$12+$F$13*$L$13 -> 7.94 | U10: =F10*M10+F11*M11+F12*M12+F13*M13 -> 11.41 | V10: =$H$10*$J$10+$H$11*$J$11+$H$12*$J$12+$H$13*$J$13 -> 7.21 | W10: =$H$10*$K$10+$H$11*$K$11+$H$12*$K$12+$H$13*$K$13 -> 5.09 | X10: =$H$10*$L$10+$H$11*$L$11+$H$12*$L$12+$H$13*$L$13 -> 6.54 | Y10: =$H$10*$M$10+$H$11*$M$11+$H$12*$M$12+$H$13*$M$13 -> 9
B11: geografische Ausdehnung | C11: 1:=weit (z.B. Asien); 5:= begrenzt (lokal) | D11: 5 | F11: 4 | H11: 5 | J11: 0.7 | K11: 0.45 | L11: 0.6 | M11: 0.75
B12: Anzahl teilnehmender Akteure | C12: 1:= hoch; 5 =gering | D12: 1 | F12: 5 | H12: 1 | J12: 0.79 | K12: 0.46 | L12: 0.5 | M12: 0.79
B13: Komplexität der Transaktion | C13: 1:= sehr komplex ; 5:= wenig komplex | D13: 2 | F13: 2 | H13: 2 | J13: 0.46 | K13: 0.35 | L13: 0.36 | M13: 0.65
A14: Beziehungs-merkmale | B14: Beziehungsdauer | C14: 1:= kurz; 5:= sehr lang | D14: 3 | E14: =ROUND(((D14+D15+D16)/3),0) -> 4 | F14: 2 | G14: =ROUND(((F14+F15+F16)/3),0) -> 2 | H14: 3 | I14: =ROUND(((H14+H15+H16)/3),0) -> 4 | J14: 0.33 | K14: 0.42 | L14: 0.43 | M14: 0.58 | N14: =$D$14*$J$14+$D$15*$J$15+$D$16*$J$16 -> 7.15 | O14: =$D$14*$K$14+$D$15*$K$15+$D$16*$K$16 -> 6.56 | P14: =$D$14*$L$14+$D$15*$L$15+$D$16*$L$16 -> 7.19 | Q14: =$D$14*$M$14+$D$15*$M$15+$D$16*$M$16 -> 7.89 | R14: =$F$14*$J$14+$F$15*$J$15+$F$16*$J$16 -> 3.44 | S14: =F14*K14+F15*K15+F16*K16 -> 3.26 | T14: =$F$14*$L$14+$F$15*$L$15+$F$16*$L$16 -> 3.54 | U14: =$F$14*$M$14+$F$15*$M$15+$F$16*$M$16 -> 3.92 | V14: =$H$14*$J$14+$H$15*$J$15+$H$16*$J$16 -> 7.15 | W14: =$H$14*$K$14+$H$15*$K$15+$H$16*$K$16 -> 6.56 | X14: =$H$14*$L$14+$H$15*$L$15+$H$16*$L$16 -> 7.19 | Y14: =$H$14*$M$14+$H$15*$M$15+$H$16*$M$16 -> 7.89
B15: Marktmacht | C15: 1:= sehr gering; 5:= sehr hoch | D15: 4 | F15: 2 | H15: 4 | J15: 0.79 | K15: 0.75 | L15: 0.8 | M15: 0.75
B16: branchenübegreifend | C16: 1:= vollkommen fremd; 5:= gleiche Branche | D16: 5 | F16: 2 | H16: 5 | J16: 0.6 | K16: 0.46 | L16: 0.54 | M16: 0.63
A17: Sonstiges | B17: Stammdatenqualität | C17: 1:= sehr schlecht ; 5:= sehr gut | D17: 1 | E17: =ROUND(((D17)/1),0) -> 1 | F17: 3 | G17: =ROUND(((F17)/1),0) -> 3 | H17: 1 | I17: =ROUND(((H17)/1),0) -> 1 | J17: 0.3 | K17: 0.89 | L17: 0.87 | M17: 0.3 | N17: =$D$17*$J$17 -> 0.3 | O17: =$D$17*$K$17 -> 0.89 | P17: =$D$17*$L$17 -> 0.87 | Q17: =$D$17*$M$17 -> 0.3 | R17: =$F$17*$J$17 -> 0.9 | S17: =F17*K17 -> 2.67 | T17: =F17*L17 -> 2.61 | U17: =F17*M17 -> 0.9 | V17: =$H$17*$J$17 -> 0.3 | W17: =$H$17*$K$17 -> 0.89 | X17: =$H$17*$L$17 -> 0.87 | Y17: =$H$17*$M$17 -> 0.3
B18: Medienbrüche | C18: 1:= hohe Anzahl ; 5:= keine | D18: 2 | F18: 4 | H18: 2 | J18: ? | K18: ? | L18: ? | M18: ?
B19: Automatisierungsgrad | C19: 1:= sehr gering; 5:= sehr hoch | D19: 3 | F19: 3 | H19: 3 | J19: ? | K19: ? | L19: ? | M19: ?
N21: =SUM(N7:N17) -> 16.75 | O21: =SUM(O7:O17) -> 14.51 | P21: 17.55 | Q21: 20.01 | R21: 16.1 | S21: 14.38 | T21: 17.04 | U21: 19.05 | V21: 16.75 | W21: 14.51 | X21: 17.55 | Y21: 20.01
A24: Durch eBusiness Standards potentiell zu erzielender Nutzen
A25: Kategorie | B25: Kriterien | C25: Bemerkung | D25: Bewertung | J25: Einfluss auf eBS Kategorien
D26: GP 1 | F26: GP 2 | H26: GP 3 | N26: GP1 | R26: GP2 | V26: GP3
E27: gerundeter Durchschnitt | G27: gerundeter Durchschnitt | I27: gerundeter Durchschnitt | J27: IS | K27: PKS | L27: KS | M27: TS | N27: IS | O27: PKS | P27: KS | Q27: TS | R27: IS | S27: PKS | T27: KS | U27: TS | V27: IS | W27: PKS | X27: KS | Y27: TS
A28: Kosteneinsparung | B28: Personal | C28: Sie kennen ihr Unternehmen am besten und sollen daher im Folgenden, basierend auf ihrem Wissen zu Funktionen und Leistungen von eBS, einschätzen, welche Verbesserung Sie durch den Einsatz von eBS erwarten. Diese Einschätzung ist abhängig von der Güte ihrer Prozesse. Wenn Sie z.B. viel Zeit für die Auftragsannahme benötigen, da Sie mit verschiedenen Datenpools arbeiten, ist der Nutzen durch den Einsatz von eBS wahrscheinlich hoch. | D28: 1 | E28: =ROUND(((D28+D29+D30+D31+D32)/5),0) -> 3 | F28: 3 | G28: =ROUND(((F28+F29+F30+F31+F32)/5),0) -> 3 | H28: 2 | I28: =ROUND(((H28+H29+H30+H31+H32)/5),0) -> 3 | J28: 0.45 | K28: 0.21 | L28: 0.54 | M28: 0.8 | N28: =$D$28*$J$28+$D$29*$J$29+$D$30*$J$30+$D$31*$J$31+$D$32*$J$32 -> 7.07 | O28: =$D$28*K28+$D$29*K29+$D$30*K30+$D$31*K31+$D$32*K32 -> 6.7 | P28: =$D$28*L28+$D$29*L29+$D$30*L30+$D$31*L31+$D$32*L32 -> 7.07 | Q28: =$D$28*$M$28+$D$29*$M$29+$D$30*$M$30+$D$31*$M$31+$D$32*$M$32 -> 9.25 | R28: =$F$28*$J$28+$F$29*$J$29+$F$30*$J$30+$F$31*$J$31+$F$32*$J$32 -> 6.52 | S28: =$F$28*$K$28+$F$29*$K$29+$F$30*$K$30+$F$31*$K$31+$F$32*$K$32 -> 6.17 | T28: =$F$28*$L$28+$F$29*$L$29+$F$30*$L$30+$F$31*$L$31+$F$32*$L$32 -> 7.44 | U28: =$F$28*$M$28+$F$29*$M$29+$F$30*$M$30+$F$31*$M$31+$F$32*$M$32 -> 10 | V28: =$H$28*$J$28+$H$29*$J$29+$H$30*$J$30+$H$31*$J$31+$H$32*$J$32 -> 6.72 | W28: =$H$28*$K$28+$H$29*$K$29+$H$30*$K$30+$H$31*$K$31+$H$32*$K$32 -> 6.36 | X28: =$H$28*$L$28+$H$29*$L$29+$H$30*$L$30+$H$31*$L$31+$H$32*$L$32 -> 7.2 | Y28: =$H$28*$M$28+$H$29*$M$29+$H$30*$M$30+$H$31*$M$31+$H$32*$M$32 -> 9.7
B29: TAK | D29: 2 | F29: 3 | H29: 3 | J29: 0.5 | K29: 0.54 | L29: 0.63 | M29: 0.95
B30: Fehler | D30: 3 | F30: 3 | H30: 3 | J30: 0.79 | K30: 0.75 | L30: 0.67 | M30: 0.95
B31: Nachverhandlung | D31: 4 | F31: 3 | H31: 3 | J31: 0 | K31: 0.29 | L31: 0.44 | M31: 0.3
B32: Fehlleistung | D32: 5 | F32: 2 | H32: 3 | J32: 0.65 | K32: 0.4 | L32: 0.3 | M32: 0.5
A33: Zeiteinsparung | B33: Reaktion | D33: 1 | E33: =ROUND(((D33+D34+D35+D36+D37)/5),0) -> 3 | F33: 2 | G33: =ROUND(((F33+F34+F35+F36+F37)/5),0) -> 3 | H33: 2 | I33: =ROUND(((H33+H34+H35+H36+H37)/5),0) -> 2 | J33: 0.79 | K33: 0.5 | L33: 0.58 | M33: 0.79 | N33: =$D$33*$J$33+$D$34*$J$34+$D$35*$J$35+$D$36*$J$36+$D$37*$J$37 -> 10.64 | O33: =$D$33*$K$33+$D$34*$K$34+$D$35*$K$35+$D$36*$K$36+$D$37*$K$37 -> 8.81 | P33: =$D$33*$L$33+$D$34*$L$34+$D$35*$L$35+$D$36*$L$36+$D$37*$L$37 -> 9.86 | Q33: =$D$33*$M$33+$D$34*$M$34+$D$35*$M$35+$D$36*$M$36+$D$37*$M$37 -> 7.21 | R33: =$F$33*$J$33+$F$34*$J$34+$F$35*$J$35+$F$36*$J$36+$F$37*$J$37 -> 11.16 | S33: =$F$33*$K$33+$F$34*$K$34+$F$35*$K$35+$F$36*$K$36+$F$37*$K$37 -> 8.88 | T33: =$F$33*$L$33+$F$34*$L$34+$F$35*$L$35+$F$36*$L$36+$F$37*$L$37 -> 10 | U33: =$F$33*$M$33+$F$34*$M$34+$F$35*$M$35+$F$36*$M$36+$F$37*$M$37 -> 8.1 | V33: =$H$33*$J$33+$H$34*$J$34+$H$35*$J$35+$H$36*$J$36+$H$37*$J$37 -> 7.47 | W33: =$H$33*$K$33+$H$34*$K$34+$H$35*$K$35+$H$36*$K$36+$H$37*$K$37 -> 6.18 | X33: =$H$33*$L$33+$H$34*$L$34+$H$35*$L$35+$H$36*$L$36+$H$37*$L$37 -> 6.52 | Y33: =$H$33*$M$33+$H$34*$M$34+$H$35*$M$35+$H$36*$M$36+$H$37*$M$37 -> 5.01
B34: Lieferung | D34: 2 | F34: 2 | H34: 2 | J34: 0.63 | K34: 0.38 | L34: 0.3 | M34: 0.5
B35: Durchlauf | D35: 3 | F35: 4 | H35: 1 | J35: 0.58 | K35: 0.45 | L35: 0.46 | M35: 0.45
B36: Abwicklung | D36: 4 | F36: 4 | H36: 1 | J36: 0.65 | K36: 0.45 | L36: 0.7 | M36: 0.58
B37: Produktsuche | D37: 5 | F37: 4 | H37: 4 | J37: 0.85 | K37: 0.88 | L37: 0.9 | M37: 0.35
A38: Qualitäts-verbesserung | B38: Kundenzufriendenheit | D38: 1 | E38: =ROUND(((D38+D39+D40)/3),0) -> 2 | F38: 5 | G38: =ROUND(((F38+F39+F40)/3),0) -> 5 | H38: 2 | I38: =ROUND(((H38+H39+H40)/3),0) -> 4 | J38: 0.33 | K38: 0.71 | L38: 0.65 | M38: 0.4 | N38: =$D$38*$J$38+$D$39*$J$39+$D$40*$J$40 -> 3.27 | O38: =$D$38*$K$38+$D$39*$K$39+$D$40*$K$40 -> 2.28 | P38: =$D$38*$L$38+$D$39*$L$39+$D$40*$L$40 -> 3.05 | Q38: =$D$38*$M$38+$D$39*$M$39+$D$40*$M$40 -> 3 | R38: =$F$38*$J$38+$F$39*$J$39+$F$40*$J$40 -> 6.97 | S38: =$F$38*$K$38+$F$39*$K$39+$F$40*$K$40 -> 6.32 | T38: =$F$38*$L$38+$F$39*$L$39+$F$40*$L$40 -> 7.5 | U38: =$F$38*$M$38+$F$39*$M$39+$F$40*$M$40 -> 6.75 | V38: =$H$38*$J$38+$H$39*$J$39+$H$40*$J$40 -> 5.96 | W38: =$H$38*$K$38+$H$39*$K$39+$H$40*$K$40 -> 4.23 | X38: =$H$38*$L$38+$H$39*$L$39+$H$40*$L$40 -> 5.6 | Y38: =$H$38*$M$38+$H$39*$M$39+$H$40*$M$40 -> 5.5
B39: Kooperationen | D39: 2 | F39: 5 | H39: 4 | J39: 0.6 | K39: 0.29 | L39: 0.45 | M39: 0.55
B40: Abwicklungsqualität | D40: 3 | F40: 4 | H40: 5 | J40: 0.58 | K40: 0.33 | L40: 0.5 | M40: 0.5
N42: =SUM(N28:N40) -> 20.98 | O42: =SUM(O28:O40) -> 17.79 | P42: 19.98 | Q42: 19.46 | R42: 24.65 | S42: 21.37 | T42: 24.94 | U42: 24.85 | V42: 20.15 | W42: 16.77 | X42: 19.32 | Y42: 20.21

Sheet Auswertung
B3: Eignung der Geschäftsprozesse für die Einführung von eBusiness Standards | R3: Grenzwerte für Bewertung der Standardkategorien
B4: Geschäfts-prozess | C4: Gesamt Bewertung | D4: Einzeln | I4: Kategorien | M4: eBS - Kategorien | S4: IS | T4: Kl | U4: KA | V4: TK
D5: 1 | E5: 2 | F5: 3 | G5: 4 | H5: 5 | I5: Transaktionsobjekt | J5: Transaktionsstruktur | K5: Beziehungsmerkmale | L5: Sonstiges | M5: IS | N5: KL | O5: KA | P5: TK | R5: 1 | S5: 5.68 | T5: 5.39 | U5: 6.43 | V5: 6.88
B6: Gp1 | C6: =ROUND((SUM(Nutzenpotential!$D$7:$D$19)/13),2) -> 2.77 | D6: =COUNTIF(Nutzenpotential!$D$7:$D$19,"=1") -> 3 | E6: =COUNTIF(Nutzenpotential!$D$7:$D$19,"=2") -> 3 | F6: =COUNTIF(Nutzenpotential!$D$7:$D$19,"=3") -> 3 | G6: =COUNTIF(Nutzenpotential!$D$7:$D$19,"=5") -> 2 | H6: =COUNTIF(Nutzenpotential!$D$7:$D$19,"=5") -> 2 | I6: =ROUND( SUM(Nutzenpotential!$D$7:$D$9)/3,0) -> 2 | J6: =ROUND( SUM(Nutzenpotential!$D$10:$D$13)/4,0) -> 3 | K6: =ROUND( SUM(Nutzenpotential!$D$14:$D$16)/3,0) -> 4 | L6: =ROUND( SUM(Nutzenpotential!$D$17:$D$19)/3,0) -> 2 | M6: =Nutzenpotential!N21 -> 16.75 | N6: =Nutzenpotential!O21 -> 14.51 | O6: =Nutzenpotential!P21 -> 17.55 | P6: =Nutzenpotential!Q21 -> 20.01 | R6: 2 | S6: 11.36 | T6: 10.78 | U6: 12.86 | V6: =$V$5*2 -> 13.76
B7: GP2 | C7: =ROUND((SUM(Nutzenpotential!$F$7:$F$20)/13),2) -> 2.85 | D7: =COUNTIF(Nutzenpotential!$F$7:$F$19,"=1") -> 1 | E7: =COUNTIF(Nutzenpotential!$F$7:$F$19,"=2") -> 5 | F7: =COUNTIF(Nutzenpotential!$F$7:$F$19,"=3") -> 3 | G7: =COUNTIF(Nutzenpotential!$F$7:$F$19,"=4") -> 3 | H7: =COUNTIF(Nutzenpotential!$F$7:$F$19,"=5") -> 1 | I7: =ROUND( SUM(Nutzenpotential!$F$7:$F$9)/3,0) -> 2 | J7: =ROUND( SUM(Nutzenpotential!$F$10:$F$13)/4,0) -> 4 | K7: =ROUND( SUM(Nutzenpotential!$F$14:$F$16)/3,0) -> 2 | L7: =ROUND( SUM(Nutzenpotential!$F$17:$F$19)/3,0) -> 3 | M7: =Nutzenpotential!R21 -> 16.1 | N7: =Nutzenpotential!S21 -> 14.38 | O7: =Nutzenpotential!T21 -> 17.04 | P7: =Nutzenpotential!U21 -> 19.05 | R7: 3 | S7: 17.04 | T7: 16.17 | U7: 19.29 | V7: =$V$5*3 -> 20.64
B8: Gp3 | C8: =ROUND((SUM(Nutzenpotential!$H$7:$H$20)/13),2) -> 2.77 | D8: =COUNTIF(Nutzenpotential!$H$7:$H$19,"=1") -> 3 | E8: =COUNTIF(Nutzenpotential!$H$7:$H$19,"=2") -> 3 | F8: =COUNTIF(Nutzenpotential!$H$7:$H$19,"=3") -> 3 | G8: =COUNTIF(Nutzenpotential!$H$7:$H$19,"=4") -> 2 | H8: =COUNTIF(Nutzenpotential!$H$7:$H$19,"=5") -> 2 | I8: =ROUND( SUM(Nutzenpotential!$H$7:$H$9)/3,0) -> 2 | J8: =ROUND( SUM(Nutzenpotential!$H$10:$H$13)/4,0) -> 3 | K8: =ROUND( SUM(Nutzenpotential!$H$14:$H$16)/3,0) -> 4 | L8: =ROUND( SUM(Nutzenpotential!$H$17:$H$19)/3,0) -> 2 | M8: =Nutzenpotential!V21 -> 16.75 | N8: =Nutzenpotential!W21 -> 14.51 | O8: =Nutzenpotential!X21 -> 17.55 | P8: =Nutzenpotential!Y21 -> 20.01 | R8: 4 | S8: 22.72 | T8: 21.56 | U8: 25.72 | V8: =$V$5*4 -> 27.52
R9: 5 | S9: 28.4 | T9: 26.95 | U9: 32.15 | V9: =$V$5*5 -> 34.4
B11: Nutzengenerierung durch Einsatz von eBuseinss Standards in Geschäftsprozessen | R11: Grenzwerte für Bewertung der Standardkategorien
B12: Geschäfts-prozess | C12: Gesamt Bewertung | D12: Einzeln | I12: Kategorien | M12: eBS - Katgeorien | S12: IS | T12: Kl | U12: KA | V12: TK
D13: 1 | E13: 2 | F13: 3 | G13: 4 | H13: 5 | I13: Kosten-einsparung | J13: Zeit-einsparung | K13: Qualitäts-verbesserung | L13: - | M13: IS | N13: KL | O13: KA | P13: TK | R13: 1 | S13: 7.4 | T13: 6.18 | U13: 7.12 | V13: 7.62
B14: GP1 | C14: =ROUND((SUM(Nutzenpotential!$D$28:$D$40)/13),2) -> 2.77 | D14: =COUNTIF(Nutzenpotential!$D$28:$D$40,"=1") -> 3 | E14: =COUNTIF(Nutzenpotential!$D$28:$D$40,"=2") -> 3 | F14: =COUNTIF(Nutzenpotential!$D$28:$D$40,"=3") -> 3 | G14: =COUNTIF(Nutzenpotential!$D$28:$D$40,"=4") -> 2 | H14: =COUNTIF(Nutzenpotential!$D$28:$D$40,"=5") -> 2 | I14: =ROUND( SUM(Nutzenpotential!$D$28:$D$32)/5,0) -> 3 | J14: =ROUND( SUM(Nutzenpotential!$D$33:$D$37)/5,0) -> 3 | K14: =ROUND( SUM(Nutzenpotential!$D$38:$D$40)/3,0) -> 2 | L14: - | M14: =Nutzenpotential!N42 -> 20.98 | N14: =Nutzenpotential!O42 -> 17.79 | O14: =Nutzenpotential!P42 -> 19.98 | P14: =Nutzenpotential!Q42 -> 19.46 | R14: 2 | S14: 14.8 | T14: 12.36 | U14: 14.24 | V14: 15.24
B15: GP2 | C15: =ROUND((SUM(Nutzenpotential!$F$28:$F$40)/13),2) -> 3.38 | D15: =COUNTIF(Nutzenpotential!$F$28:$F$40,"=1") -> 0 | E15: =COUNTIF(Nutzenpotential!$F$28:$F$40,"=2") -> 3 | F15: =COUNTIF(Nutzenpotential!$F$28:$F$40,"=3") -> 4 | G15: =COUNTIF(Nutzenpotential!$F$28:$F$40,"=4") -> 4 | H15: =COUNTIF(Nutzenpotential!$F$28:$F$40,"=5") -> 2 | I15: =ROUND( SUM(Nutzenpotential!$F$28:$F$32)/5,0) -> 3 | J15: =ROUND( SUM(Nutzenpotential!$F$33:$F$37)/5,0) -> 3 | K15: =ROUND( SUM(Nutzenpotential!$F$38:$F$40)/3,0) -> 5 | L15: - | M15: =Nutzenpotential!R42 -> 24.65 | N15: =Nutzenpotential!S42 -> 21.37 | O15: =Nutzenpotential!T42 -> 24.94 | P15: =Nutzenpotential!U42 -> 24.85 | R15: 3 | S15: 22.2 | T15: 18.54 | U15: 21.36 | V15: 22.86
B16: GP3 | C16: =ROUND((SUM(Nutzenpotential!$H$28:$H$40)/13),2) -> 2.69 | D16: =COUNTIF(Nutzenpotential!$H$28:$H$40,"=1") -> 2 | E16: =COUNTIF(Nutzenpotential!$H$28:$H$40,"=2") -> 4 | F16: =COUNTIF(Nutzenpotential!$H$28:$H$40,"=3") -> 4 | G16: =COUNTIF(Nutzenpotential!$H$28:$H$40,"=4") -> 2 | H16: =COUNTIF(Nutzenpotential!$H$28:$H$40,"=5") -> 1 | I16: =ROUND( SUM(Nutzenpotential!$H$28:$H$32)/5,0) -> 3 | J16: =ROUND( SUM(Nutzenpotential!$H$33:$H$37)/5,0) -> 2 | K16: =ROUND( SUM(Nutzenpotential!$H$38:$H$40)/3,0) -> 4 | L16: - | M16: =Nutzenpotential!V42 -> 20.15 | N16: =Nutzenpotential!W42 -> 16.77 | O16: =Nutzenpotential!X42 -> 19.32 | P16: =Nutzenpotential!Y42 -> 20.21 | R16: 4 | S16: 29.6 | T16: 24.72 | U16: 28.48 | V16: 30.48
R17: 5 | S17: 37 | T17: 30.9 | U17: 35.6 | V17: 38.1
